bitfinex-derivatives/quotes_SOLF0:USTF0_20250626
["timestamp","ask_amount","ask_price","bid_price","bid_amount"]
[1750964218062,2.4018,141.52,141.48,6.61470224]
[1750964218258,2.4018,141.52,141.49,6.61470224]
[1750964219165,7.0647,141.5,141.49,6.61470224]
[1750964222763,7.0643,141.51,141.49,6.61470224]
[1750964222963,36.0,141.53,141.49,6.61470224]
[1750964224269,36.0,141.53,141.47,15.82204012]
[1750964224475,36.0,141.53,141.49,6.60806604]
[1750964224974,7.0649,141.5,141.49,6.60806604]
[1750964225364,7.0649,141.5,141.48,8.75614012]
[1750964225970,7.0649,141.5,141.49,6.60711533]
[1750964226275,7.0649,141.5,141.47,15.82204012]
[1750964227470,7.0652,141.49,141.47,15.82204012]
[1750964228472,7.0652,141.49,141.47,8.75614012]
[1750964230677,7.0656,141.48,141.47,8.75614012]
[1750964230884,4.57499798,141.5,141.46,44.73614012]
[1750964231375,7.0661,141.47,141.46,44.73614012]
[1750964232670,7.0661,141.47,141.46,8.75614012]
[1750964232873,4.57499798,141.48,141.45,6.60497039]
[1750964234075,7.0666,141.46,141.44,8.75614012]
[1750964234576,2.4239,141.49,141.44,8.75614012]
[1750964234777,2.49767881,141.48,141.46,6.60494384]
[1750964234977,2.4239,141.49,141.46,6.60494384]
[1750964235282,7.0661,141.47,141.46,6.60494384]
[1750964235675,7.0666,141.46,141.45,6.60494384]
[1750964236072,4.57499798,141.48,141.44,6.60494384]
[1750964236279,7.0676,141.44,141.43,6.60494384]
[1750964237577,4.57499798,141.48,141.43,8.75614012]
[1750964237775,4.57499798,141.48,141.44,6.60433031]
[1750964238175,2.49552839,141.47,141.44,6.60433031]
[1750964238377,7.0671,141.45,141.44,6.60433031]
[1750964241485,4.57499798,141.48,141.43,6.60433031]
[1750964241486,7.0676,141.44,141.43,6.60433031]
[1750964241689,7.0676,141.44,141.42,15.82474012]
[1750964242889,7.0676,141.44,141.42,8.75614012]
[1750964243988,7.0676,141.44,141.43,6.60108165]
[1750964246490,4.57499798,141.44,141.37,44.73614012]
[1750964246688,4.57499798,141.42,141.36,8.75614012]
[1750964246895,7.071,141.38,141.35,8.75614012]
[1750964247087,7.071,141.38,141.34,44.73614012]
[1750964247592,2.3221,141.43,141.35,13.3311381]
[1750964247788,4.57499798,141.42,141.35,13.3311381]
[1750964247986,7.0704,141.39,141.36,7.0715]
[1750964248592,4.57499798,141.42,141.35,13.3311381]
[1750964248792,2.3221,141.43,141.36,8.75614012]
[1750964249184,7.0692,141.41,141.38,7.0706]
[1750964250588,7.0697,141.4,141.38,7.0706]
[1750964252990,7.0694,141.41,141.38,7.0706]
[1750964254299,7.0694,141.41,141.39,7.0701]
[1750964254787,7.0689,141.42,141.39,4.57499798]
[1750964254982,7.0689,141.42,141.39,11.64469798]
[1750964255182,7.0683,141.43,141.39,4.57499798]
[1750964255497,7.0683,141.43,141.4,7.0694]
[1750964255888,7.0679,141.44,141.41,7.0691]
[1750964256084,7.0679,141.44,141.39,4.57499798]
[1750964256595,7.0679,141.44,141.41,7.0687]
[1750964257496,43.0474,141.45,141.41,4.57499798]
[1750964257692,7.0674,141.45,141.41,4.57499798]
[1750964258092,7.0674,141.45,141.42,7.0685]
[1750964259995,7.0674,141.45,141.43,7.0681]
[1750964260699,4.57499798,141.47,141.4,4.57499798]
[1750964261698,4.57499798,141.47,141.41,7.0689]
[1750964262291,7.0679,141.44,141.41,7.0689]
[1750964263602,7.0683,141.43,141.4,11.64439798]
[1750964265501,7.0679,141.44,141.4,4.57499798]
[1750964265701,43.3169,141.48,141.4,4.57499798]
[1750964266602,7.0675,141.45,141.42,7.0684]
[1750964267598,7.0677,141.44,141.42,7.0684]
[1750964268501,7.067,141.46,141.42,40.55499798]
[1750964268703,7.3369,141.48,141.42,40.55499798]
[1750964269499,7.3369,141.48,141.43,7.0679]
[1750964270000,7.3369,141.48,141.42,47.62339798]
[1750964270605,7.0675,141.45,141.42,43.0484]
[1750964271907,7.0669,141.46,141.43,7.0678]
[1750964272109,7.0669,141.46,141.43,4.57499798]
[1750964272311,2.4685,141.48,141.43,4.57499798]
[1750964272809,7.0664,141.47,141.44,7.0674]
[1750964273909,7.0659,141.48,141.45,7.0671]
[1750964274304,35.98,141.51,141.45,7.0671]
[1750964274504,7.0665,141.47,141.45,7.0671]
[1750964278512,7.0652,141.49,141.47,7.066]
[1750964278819,35.98,141.51,141.47,7.066]
[1750964279119,35.98,141.51,141.45,4.57499798]
[1750964279914,7.0649,141.5,141.45,4.57499798]
[1750964280117,7.0649,141.5,141.48,7.0654]
[1750964280315,35.98,141.51,141.46,35.94]
[1750964281805,7.065,141.5,141.48,7.0654]
[1750964282006,35.98,141.51,141.46,35.94]
[1750964282216,7.0654,141.49,141.47,7.0659]
[1750964283516,7.0649,141.5,141.48,7.0656]
[1750964284513,2.3436,141.52,141.47,4.57499798]
[1750964284723,2.43512085,141.53,141.47,4.57499798]
[1750964284916,7.0637,141.52,141.49,7.0649]
[1750964285114,2.43535636,141.53,141.49,4.57499798]
[1750964285419,35.94,141.54,141.49,4.57499798]
[1750964285724,7.0634,141.53,141.5,7.0644]
[1750964287214,7.0638,141.52,141.5,7.0644]
[1750964287414,7.0638,141.52,141.49,4.57499798]
[1750964289515,7.0634,141.53,141.49,4.57499798]
[1750964289814,7.0634,141.53,141.46,44.69614012]
[1750964289815,7.2415,141.56,141.51,4.57499798]
[1750964290017,7.0624,141.55,141.51,4.57499798]
[1750964290712,7.0627,141.54,141.52,7.0633]
[1750964291120,35.94,141.57,141.53,7.0632]
[1750964291606,7.0621,141.56,141.53,7.0632]
[1750964291805,35.94,141.57,141.53,7.0632]
[1750964292617,7.0625,141.55,141.52,7.0634]
[1750964293417,7.0625,141.55,141.53,7.063]
[1750964296119,35.94,141.57,141.54,7.0627]
[1750964296322,47.61099798,141.6,141.53,4.57499798]
[1750964296521,7.0614,141.57,141.55,7.0619]
[1750964297214,7.0618,141.56,141.54,7.0624]
[1750964297811,7.0614,141.57,141.55,7.0621]
[1750964298018,7.116,141.6,141.55,4.57499798]
[1750964298620,4.7038,141.6,141.55,4.57499798]
[1750964299021,7.0604,141.59,141.56,7.0614]
[1750964300517,7.0604,141.59,141.57,7.0611]
[1750964300828,7.0604,141.59,141.55,4.57499798]
[1750964301029,7.0604,141.59,141.56,7.0613]
[1750964301326,4.7038,141.6,141.55,4.57499798]
[1750964301327,9.4131,141.6,141.55,4.57499798]
[1750964301528,40.49499798,141.63,141.57,4.57499798]
[1750964301926,7.06,141.6,141.58,7.0604]
[1750964302422,7.0596,141.61,141.58,7.0604]
[1750964302625,43.0059,141.64,141.57,4.57499798]
[1750964303021,7.0594,141.61,141.57,4.57499798]
[1750964303423,7.0594,141.61,141.58,7.0602]
[1750964304330,4.57499798,141.61,141.49,13.20098632]
[1750964304533,4.57499798,141.61,141.53,4.57499798]
[1750964305032,7.0615,141.57,141.54,7.0622]
[1750964305623,7.0615,141.57,141.53,4.57499798]
[1750964305624,7.0611,141.58,141.55,7.0621]
[1750964307029,7.0603,141.59,141.55,4.57499798]
[1750964307228,47.58089798,141.64,141.55,4.57499798]
[1750964307422,47.58089798,141.64,141.58,7.0604]
[1750964308122,7.0594,141.61,141.58,7.0604]
[1750964308925,47.58089798,141.64,141.58,7.0604]
[1750964309227,11.66089798,141.64,141.58,7.0604]
[1750964309932,7.0594,141.61,141.59,7.0601]
[1750964310727,7.0589,141.62,141.6,7.0596]
[1750964310927,7.0859,141.64,141.59,4.57499798]
[1750964311230,7.0584,141.63,141.59,4.57499798]
[1750964311938,14.1438,141.64,141.61,7.0591]
[1750964312234,7.0859,141.64,141.61,7.0591]
[1750964312436,7.0584,141.63,141.61,7.0591]
[1750964313632,7.0859,141.64,141.59,4.57499798]
[1750964313633,14.1438,141.64,141.59,4.57499798]
[1750964313838,11.8218,141.64,141.61,4.57499798]
[1750964314037,9.3959,141.64,141.61,4.57499798]
[1750964314730,9.3959,141.64,141.62,7.0586]
[1750964314933,7.0579,141.64,141.62,7.0586]
[1750964315344,7.0582,141.63,141.61,11.63379798]
[1750964317342,7.0579,141.64,141.62,7.0587]
[1750964318237,7.0574,141.65,141.62,7.0587]
[1750964318436,35.88,141.67,141.62,7.0587]
[1750964320443,7.0574,141.65,141.62,7.0587]
[1750964320842,7.0578,141.64,141.62,7.0587]
[1750964321445,7.0574,141.65,141.62,7.0587]
[1750964322744,35.88,141.67,141.63,7.0581]
[1750964322947,35.88,141.67,141.61,4.57499798]
[1750964323250,7.0576,141.65,141.62,7.0584]
[1750964323851,7.0578,141.64,141.62,7.0584]
[1750964327857,7.0584,141.63,141.61,7.0589]
[1750964328160,40.43499798,141.63,141.54,671.3]
[1750964328351,4.57499798,141.61,141.54,671.3]
[1750964328754,4.57499798,141.61,141.55,7.0619]
[1750964328755,7.0614,141.57,141.55,7.0619]
[1750964329351,7.0609,141.58,141.55,7.0619]
[1750964333066,7.0612,141.57,141.55,7.0619]
[1750964333268,7.0612,141.57,141.54,678.3624]
[1750964333566,7.0612,141.57,141.54,42.9224]
[1750964333964,7.0609,141.58,141.55,7.0621]
[1750964334161,7.0609,141.58,141.54,35.86]
[1750964334467,7.0609,141.58,141.55,7.0619]
[1750964339774,16.85570111,141.62,141.56,7.0617]
[1750964339970,7.2721,141.62,141.56,7.0617]
[1750964340370,7.0602,141.59,141.56,7.0617]
[1750964341465,7.0602,141.59,141.57,7.0611]
[1750964342669,7.0602,141.59,141.56,7.0614]
[1750964342867,7.0599,141.6,141.55,13.3311381]
[1750964343265,7.0599,141.6,141.57,7.0609]
[1750964344673,7.0602,141.59,141.57,7.0609]
[1750964345078,7.2721,141.62,141.57,7.0609]
[1750964345478,7.0599,141.6,141.57,7.0609]
[1750964346173,7.0599,141.6,141.58,7.0606]
[1750964347378,7.2721,141.62,141.57,7.0609]
[1750964348474,7.06,141.6,141.57,7.0609]
[1750964352278,7.0593,141.61,141.58,7.0605]
[1750964352483,35.84,141.64,141.57,4.57499798]
[1750964352680,2.45387252,141.63,141.57,4.57499798]
[1750964352875,7.0591,141.62,141.59,7.0599]
[1750964353482,7.0591,141.62,141.6,7.0596]
[1750964353984,7.0592,141.61,141.59,11.63489798]
[1750964358885,7.0597,141.6,141.59,4.57499798]
[1750964359385,7.0594,141.61,141.59,11.63519798]
[1750964360182,7.0594,141.61,141.59,4.57499798]
[1750964361485,7.0594,141.61,141.59,11.63509798]
[1750964362888,7.0589,141.62,141.59,11.63509798]
[1750964363091,35.84,141.64,141.59,11.63509798]
[1750964366598,7.0592,141.61,141.59,11.63509798]
[1750964370298,7.0589,141.62,141.59,4.57499798]
[1750964370498,35.84,141.64,141.59,4.57499798]
[1750964371698,7.0593,141.61,141.59,11.63499798]
[1750964372298,7.0593,141.61,141.6,2.92306325]
[1750964376700,7.0598,141.6,141.58,44.59614012]
[1750964376901,7.0598,141.6,141.59,2.92306325]
[1750964377104,2.92306325,141.63,141.59,2.92306325]
[1750964377398,2.92306325,141.6,141.57,8.75614012]
[1750964377604,2.92306325,141.59,141.56,2.92306325]
[1750964377897,7.0609,141.58,141.56,2.92306325]
[1750964378502,7.0612,141.57,141.56,2.92306325]
[1750964378705,2.92306325,141.59,141.56,2.92306325]
[1750964379494,2.92306325,141.59,141.55,47.45920337]
[1750964379699,2.92306325,141.57,141.55,44.53614012]
[1750964379902,2.92306325,141.56,141.52,8.75614012]
[1750964380097,2.92306325,141.53,141.5,11.67920337]
[1750964380294,4.57381423,141.55,141.5,8.75614012]
[1750964380604,7.0637,141.52,141.5,8.75614012]
[1750964380907,7.0637,141.52,141.49,51.60094012]
[1750964381308,7.0637,141.52,141.49,42.8448]
[1750964383800,7.0642,141.51,141.49,35.78]
[1750964385400,7.0639,141.52,141.49,35.78]
[1750964385600,4.7614,141.54,141.49,35.78]
[1750964386109,2.2771,141.54,141.49,35.78]
[1750964386516,7.0634,141.53,141.5,7.0644]
[1750964389716,7.0634,141.53,141.49,35.78]
[1750964390216,7.0634,141.53,141.5,7.0643]
[1750964394809,7.0633,141.53,141.5,7.0643]
[1750964395017,2.2771,141.54,141.5,7.0643]
[1750964395415,7.0636,141.53,141.5,7.0643]
[1750964396416,2.2771,141.54,141.49,35.78]
[1750964396620,4.57381423,141.53,141.46,40.37381423]
[1750964396816,7.09571423,141.53,141.46,40.37381423]
[1750964397018,7.065,141.5,141.47,7.0659]
[1750964399221,7.065,141.5,141.46,40.37381423]
[1750964399222,7.065,141.5,141.48,7.0656]
[1750964400620,2.2771,141.54,141.48,4.57381423]
[1750964401018,2.2771,141.54,141.49,7.0649]
[1750964401716,7.0639,141.52,141.49,7.0649]
[1750964401916,2.2771,141.54,141.49,7.0649]
[1750964402216,2.2771,141.54,141.48,4.57381423]
[1750964402613,6.85091423,141.54,141.46,40.37381423]
[1750964402922,7.0655,141.49,141.46,35.8]
[1750964403129,7.0655,141.49,141.46,42.8664]
[1750964403322,7.0657,141.48,141.46,42.8664]
[1750964404223,7.0654,141.49,141.46,42.8664]
[1750964404525,40.31381423,141.52,141.46,35.8]
[1750964404726,4.57381423,141.5,141.44,4.57381423]
[1750964405128,2.29,141.51,141.46,7.0666]
[1750964405321,2.29,141.51,141.44,4.57381423]
[1750964405522,35.74,141.52,141.46,4.57381423]
[1750964405721,7.0644,141.51,141.46,4.57381423]
[1750964406321,7.0644,141.51,141.47,7.0658]
[1750964406521,7.0644,141.51,141.46,4.57381423]
[1750964406921,7.0644,141.51,141.48,7.0654]
[1750964407628,7.0647,141.5,141.47,7.0659]
[1750964407829,35.74,141.52,141.46,4.57381423]
[1750964408216,7.0646,141.51,141.48,7.0656]
[1750964408421,40.31381423,141.52,141.48,7.0656]
[1750964408730,7.0649,141.5,141.46,4.57381423]
[1750964409117,7.0647,141.5,141.48,7.0654]
[1750964409520,4.57381423,141.52,141.48,7.0654]
[1750964409717,7.0645,141.51,141.48,7.0654]
[1750964409923,4.57381423,141.52,141.47,7.0659]
[1750964410422,7.0649,141.5,141.47,7.0659]
[1750964410622,7.0649,141.5,141.47,7.066]
[1750964410828,7.0649,141.5,141.46,4.57381423]
[1750964411324,4.57381423,141.52,141.44,4.57381423]
[1750964411715,4.57381423,141.52,141.47,7.0658]
[1750964413428,4.57381423,141.5,141.44,4.57381423]
[1750964413729,2.5078,141.49,141.44,4.57381423]
[1750964414230,7.0659,141.48,141.45,7.0669]
[1750964414529,2.5078,141.49,141.43,35.74]
[1750964414727,7.0664,141.47,141.43,35.74]
[1750964415123,7.0664,141.47,141.42,4.57381423]
[1750964415324,7.0664,141.47,141.44,7.0674]
[1750964415736,38.2478,141.49,141.44,7.0674]
[1750964416334,7.0664,141.47,141.44,7.0674]
[1750964416535,4.57381423,141.48,141.4,49.06995435]
[1750964416736,4.57381423,141.48,141.4,40.31381423]
[1750964417035,7.0671,141.46,141.43,7.0679]
[1750964417936,4.57381423,141.48,141.42,7.0684]
[1750964418126,9.46251423,141.48,141.42,7.0684]
[1750964418436,9.46251423,141.48,141.4,40.31381423]
[1750964418738,7.0671,141.46,141.43,7.0679]
[1750964418936,9.46251423,141.48,141.43,7.0679]
[1750964419137,7.0674,141.45,141.42,7.0684]
[1750964421443,7.0674,141.45,141.43,7.068]
[1750964424341,4.8887,141.48,141.42,4.57381423]
[1750964424643,38.2478,141.49,141.44,4.57381423]
[1750964425333,7.066,141.48,141.45,7.0669]
[1750964426136,7.0662,141.47,141.44,7.0674]
[1750964426433,4.57381423,141.48,141.44,7.0674]
[1750964426733,7.0664,141.47,141.42,4.57381423]
[1750964427330,7.0664,141.47,141.44,7.0672]
[1750964428348,7.0662,141.47,141.45,7.0669]
[1750964428541,7.0662,141.47,141.42,4.57381423]
[1750964429243,7.0662,141.47,141.42,13.32995435]
[1750964429440,7.0662,141.47,141.44,7.0673]
[1750964429940,4.57381423,141.48,141.41,8.75614012]
[1750964430138,4.57381423,141.46,141.41,8.75614012]
[1750964430336,7.0674,141.45,141.41,8.75614012]
[1750964430534,2.4213,141.48,141.42,4.57381423]
[1750964430842,7.0671,141.46,141.42,4.57381423]
[1750964431342,7.0671,141.46,141.43,7.0679]
[1750964431742,7.0672,141.45,141.43,7.0679]
[1750964433041,7.0672,141.45,141.42,7.0684]
[1750964435548,7.0672,141.45,141.43,7.0681]
[1750964436340,7.0669,141.46,141.43,7.0681]
[1750964437853,7.0664,141.47,141.45,7.0671]
[1750964440653,7.0664,141.47,141.44,7.0674]
[1750964441242,4.57381423,141.48,141.42,8.75614012]
[1750964441447,4.57381423,141.48,141.41,8.75614012]
[1750964441749,7.0676,141.45,141.42,7.0684]
[1750964441948,7.0676,141.45,141.4,49.06995435]
[1750964443154,7.0676,141.45,141.42,7.0682]
[1750964446249,7.068,141.44,141.41,15.82504012]
[1750964447456,7.068,141.44,141.42,7.0686]
[1750964447659,7.068,141.44,141.41,8.75614012]
[1750964448456,7.068,141.44,141.42,8.75614012]
[1750964450263,7.0673,141.45,141.43,7.0681]
[1750964450469,7.0673,141.45,141.42,8.75614012]
[1750964451055,7.0673,141.45,141.42,15.82434012]
[1750964451256,7.0673,141.45,141.42,8.75614012]
[1750964452666,7.0673,141.45,141.43,7.0681]
[1750964452865,2.41912549,141.47,141.42,8.75614012]
[1750964453070,47.50291131,141.49,141.43,4.57381423]
[1750964453285,47.50291131,141.49,141.44,8.75614012]
[1750964453286,2.41968868,141.48,141.44,8.75614012]
[1750964453481,7.0663,141.47,141.44,8.75614012]
[1750964453681,38.2478,141.49,141.45,7.0669]
[1750964454183,42.82161423,141.49,141.44,8.75614012]
[1750964454382,2.42013551,141.48,141.43,15.82394012]
[1750964454582,42.82161423,141.49,141.43,8.75614012]
[1750964454782,2.42013551,141.48,141.43,13.32995435]
[1750964455078,7.08161423,141.49,141.44,8.75614012]
[1750964455388,7.0664,141.47,141.44,15.82354012]
[1750964456280,7.08161423,141.49,141.44,8.75614012]
[1750964456479,4.57381423,141.45,141.41,8.75614012]
[1750964456686,40.27381423,141.45,141.41,8.75614012]
[1750964457079,7.0686,141.42,141.41,8.75614012]
[1750964457881,7.0684,141.43,141.41,8.75614012]
[1750964458286,7.0678,141.44,141.41,8.75614012]
[1750964458679,7.0678,141.44,141.42,8.75614012]
[1750964459791,7.0673,141.45,141.42,15.82454012]
[1750964460284,7.0677,141.44,141.42,8.75614012]
[1750964461181,7.0677,141.44,141.42,15.82474012]
[1750964461389,7.0674,141.45,141.42,15.82474012]
[1750964461788,7.0669,141.46,141.43,8.75614012]
[1750964462486,7.0669,141.46,141.43,15.82394012]
[1750964463486,7.0672,141.45,141.43,15.82394012]
[1750964463785,40.27381423,141.48,141.43,15.82394012]
[1750964463973,7.0669,141.46,141.43,15.82394012]
[1750964464378,40.27381423,141.48,141.43,15.82394012]
[1750964464379,7.0676,141.45,141.43,8.75614012]
[1750964464575,7.0676,141.45,141.42,15.82454012]
[1750964465178,7.0676,141.45,141.43,7.0681]
[1750964465383,7.0676,141.45,141.43,15.82424012]
[1750964466289,35.64,141.48,141.43,8.75614012]
[1750964466479,2.42637319,141.47,141.44,8.75614012]
[1750964466679,35.64,141.48,141.43,8.75614012]
[1750964467084,2.42659273,141.47,141.43,8.75614012]
[1750964467388,7.0664,141.47,141.44,7.0674]
[1750964467784,7.0667,141.46,141.44,7.0674]
[1750964468488,7.0667,141.46,141.43,15.82404012]
[1750964468691,7.0673,141.45,141.43,15.82404012]
[1750964470082,7.0669,141.46,141.43,15.82404012]
[1750964470992,7.0672,141.45,141.43,15.82404012]
[1750964471192,4.57381423,141.46,141.43,8.75614012]
[1750964471397,4.57381423,141.46,141.38,168.71981588]
[1750964471398,4.57381423,141.46,141.42,8.75614012]
[1750964471589,35.64,141.48,141.42,13.32995435]
[1750964471890,2.42650809,141.47,141.44,8.75614012]
[1750964472092,7.0662,141.47,141.44,15.82354012]
[1750964472392,35.64,141.48,141.44,15.82354012]
[1750964472588,2.42666458,141.47,141.44,15.82354012]
[1750964472786,35.64,141.48,141.44,15.82354012]
[1750964473086,2.4263557,141.47,141.44,15.82354012]
[1750964473395,7.0669,141.46,141.44,8.75614012]
[1750964474792,7.0669,141.46,141.44,15.82364012]
[1750964477788,7.0664,141.47,141.44,15.82364012]
[1750964478193,2.5078,141.49,141.46,8.75614012]
[1750964478396,7.0659,141.48,141.46,8.75614012]
[1750964479598,7.0659,141.48,141.46,15.82274012]
[1750964480096,7.0661,141.47,141.45,15.82304012]
[1750964481298,7.0658,141.48,141.46,7.0666]
[1750964481992,7.0654,141.49,141.46,15.82274012]
[1750964482298,40.3743,141.51,141.46,15.82274012]
[1750964482600,2.43231909,141.5,141.46,15.82274012]
[1750964482795,40.3743,141.51,141.46,15.82274012]
[1750964483102,2.43259817,141.5,141.46,15.82274012]
[1750964483301,40.3743,141.51,141.46,7.0666]
[1750964483502,7.0654,141.49,141.46,15.82274012]
[1750964483706,7.0654,141.49,141.47,7.0661]
[1750964484505,7.0654,141.49,141.46,15.82264012]
[1750964485000,7.0657,141.48,141.46,15.82264012]
[1750964485308,7.0657,141.48,141.45,8.75614012]
[1750964486006,7.0657,141.48,141.45,15.82284012]
[1750964486398,7.0662,141.47,141.45,15.82284012]
[1750964486707,7.0662,141.47,141.45,7.0667]
[1750964487014,7.0659,141.48,141.45,7.0667]
[1750964487302,40.3743,141.51,141.45,15.82284012]
[1750964487502,2.43370075,141.5,141.45,8.75614012]
[1750964487707,40.3743,141.51,141.45,8.75614012]
[1750964487908,2.43383174,141.5,141.45,8.75614012]
[1750964488107,40.3743,141.51,141.45,8.75614012]
[1750964488108,7.0658,141.48,141.45,15.82294012]
[1750964488299,7.0658,141.48,141.45,8.75614012]
[1750964488702,7.0658,141.48,141.46,7.0664]
[1750964491000,7.0653,141.49,141.47,7.0661]
[1750964491304,2.4399,141.53,141.48,4.57381423]
[1750964491601,2.4399,141.53,141.48,13.32995435]
[1750964491807,93.15084547,141.56,141.5,4.57381423]
[1750964492004,2.43802215,141.55,141.5,4.57381423]
[1750964492203,7.0625,141.55,141.52,7.0634]
[1750964492403,93.15084547,141.56,141.52,7.0634]
[1750964492603,9.49917503,141.55,141.52,7.0632]
[1750964492797,35.58,141.57,141.52,4.57381423]
[1750964493705,7.0619,141.56,141.52,4.57381423]
[1750964493911,7.0619,141.56,141.52,13.32995435]
[1750964494402,7.0619,141.56,141.52,4.57381423]
[1750964494605,7.0619,141.56,141.53,7.0628]
[1750964495201,7.0619,141.56,141.54,7.0626]
[1750964495402,2.2856,141.59,141.54,4.57381423]
[1750964496203,4.71998219,141.59,141.54,4.57381423]
[1750964496404,7.0609,141.58,141.54,4.57381423]
[1750964496604,7.0609,141.58,141.54,40.15381423]
[1750964496912,7.0609,141.58,141.55,7.0619]
[1750964497105,7.0603,141.59,141.54,40.15381423]
[1750964497306,40.15381423,141.63,141.58,7.0606]
[1750964497913,40.15381423,141.63,141.56,4.57381423]
[1750964498410,7.0594,141.61,141.56,4.57381423]
[1750964498813,7.0594,141.61,141.58,11.63421423]
[1750964499402,9.61081423,141.64,141.58,40.15381423]
[1750964499403,2.5146,141.64,141.58,40.15381423]
[1750964500011,7.0589,141.62,141.59,7.0598]
[1750964501013,2.5146,141.64,141.58,40.15381423]
[1750964501212,7.08841423,141.64,141.58,40.15381423]
[1750964501912,2.5146,141.64,141.58,40.15381423]
[1750964502314,7.0584,141.63,141.59,7.0597]
[1750964502514,7.0584,141.63,141.58,40.15381423]
[1750964502813,7.0584,141.63,141.59,7.0599]
[1750964503415,7.0584,141.63,141.6,7.0595]
[1750964503615,9.5725,141.64,141.58,40.13381423]
[1750964503810,7.0579,141.64,141.6,4.57381423]
[1750964504004,7.0579,141.64,141.61,7.0589]
[1750964505014,2.3398,141.67,141.62,4.57381423]
[1750964505413,7.0564,141.67,141.64,7.0577]
[1750964505617,35.56,141.68,141.62,40.13381423]
[1750964505818,4.8761,141.69,141.64,4.57381423]
[1750964506018,4.8761,141.69,141.65,7.0569]
[1750964506218,4.8761,141.69,141.64,4.57381423]
[1750964506613,35.56,141.71,141.66,4.57381423]
[1750964507316,7.0549,141.7,141.67,7.0559]
[1750964507721,2.4526,141.72,141.66,35.56]
[1750964508620,7.0555,141.69,141.66,47.19021423]
[1750964509220,7.0547,141.7,141.67,7.0559]
[1750964510216,7.0544,141.71,141.68,11.62941423]
[1750964510811,135.79155013,141.73,141.68,11.62941423]
[1750964510812,7.0539,141.72,141.69,7.0552]
[1750964511217,135.79155013,141.73,141.68,4.57381423]
[1750964511819,7.0539,141.72,141.68,4.57381423]
[1750964512323,7.0539,141.72,141.69,7.0549]
[1750964512527,7.0534,141.73,141.68,4.57381423]
[1750964512729,38.0728,141.74,141.68,4.57381423]
[1750964513322,7.0539,141.72,141.69,7.0549]
[1750964514228,7.0542,141.71,141.68,11.62921423]
[1750964514728,7.0542,141.71,141.68,4.57381423]
[1750964515120,7.0539,141.72,141.69,7.0551]
[1750964516830,7.0539,141.72,141.7,7.0546]
[1750964517827,7.0539,141.72,141.69,7.0549]
[1750964518932,38.0728,141.74,141.68,4.57381423]
[1750964519126,7.0545,141.71,141.68,11.62931423]
[1750964519327,7.0545,141.71,141.68,4.57381423]
[1750964520233,7.0545,141.71,141.67,4.57381423]
[1750964520441,38.0728,141.74,141.69,4.57381423]
[1750964520631,38.0728,141.74,141.7,7.0544]
[1750964520831,7.0535,141.73,141.7,7.0544]
[1750964521432,2.5128,141.74,141.69,11.62871423]
[1750964521641,2.5128,141.74,141.67,4.57381423]
[1750964521937,7.0544,141.71,141.68,7.0554]
[1750964522135,7.08661423,141.74,141.67,4.57381423]
[1750964522923,7.0544,141.71,141.68,7.0554]
[1750964523136,7.08661423,141.74,141.67,4.57381423]
[1750964523438,7.0536,141.73,141.7,7.0544]
[1750964525837,9.5657,141.74,141.71,7.0542]
[1750964526625,7.0529,141.74,141.71,7.0542]
[1750964527136,2.3267,141.78,141.72,4.57381423]
[1750964527530,7.0516,141.77,141.74,7.0526]
[1750964528032,7.0511,141.78,141.75,7.052]
[1750964528237,675.33381423,141.82,141.74,4.57381423]
[1750964528735,7.0505,141.79,141.76,7.0517]
[1750964528935,675.33381423,141.82,141.76,7.0517]
[1750964529326,7.0505,141.79,141.76,7.0517]
[1750964529526,40.05381423,141.82,141.77,7.0511]
[1750964529828,35.48,141.82,141.76,4.57381423]
[1750964530338,7.0501,141.8,141.76,4.57381423]
[1750964530638,35.48,141.82,141.76,4.57381423]
[1750964530841,7.05,141.8,141.76,4.57381423]
[1750964531138,35.48,141.82,141.76,4.57381423]
[1750964532638,7.051,141.78,141.76,4.57381423]